lending/lending_fUSD_20240111
["ID","MTS","AMOUNT","RATE_DAILY","PERIOD"]
[311151013,1704934239398,-25310.47411483,0.00041084,2]
[311151015,1704934239410,-22422.67826553,0.00041084,2]
[311151017,1704934239422,-422226.0,0.00041084,2]
[311151020,1704934239433,-944.08048523,0.00041084,2]
[311151022,1704934239444,-785.44914221,0.00041084,2]
[311151024,1704934239455,-12923.7193021,0.00041084,2]
[311151026,1704934239467,-1396.1428,0.00041084,2]
[311151029,1704934239478,-2037.53492324,0.00041084,2]
[311151031,1704934239490,-6420.88416689,0.00041084,2]
[311151033,1704934239500,-6999.53181138,0.00041084,2]
[311151035,1704934239512,-6362.03303198,0.00041084,2]
[311151037,1704934239523,-635.96349285,0.00041084,2]
[311151039,1704934239534,-12650.1003,0.00041084,2]
[311151043,1704934239557,-250.0,0.00038244,2]
[311151045,1704934239566,-105.74370788,0.00041084,2]
[311151047,1704934239577,-594.46482529,0.00041084,2]
[311151049,1704934239589,-342.79972744,0.00041084,2]
[311151153,1704934240875,-4898.19478324,0.0003831,2]
[311151154,1704934240886,-105.41507657,0.00040995,2]
[311151155,1704934241440,-312.52609998,0.00038906,4]
[311151156,1704934241502,-187.47390002,0.00038906,4]
[311151157,1704934241512,-3238.50741608,0.00040995,2]
[311151158,1704934241521,-186.58,0.00041074,10]
[311151159,1704934241531,-11147.53356682,0.00041084,2]
[311151160,1704934241543,-320.39006772,0.00041084,2]
[311151161,1704934241555,-483.47491666,0.00041084,2]
[311151162,1704934241567,-404.82832197,0.00041084,2]
[311151163,1704934241579,-31344.3663729,0.00041084,2]
[311151164,1704934241590,-507.76928861,0.00041084,2]
[311151165,1704934241602,-413.00489576,0.00041084,2]
[311151166,1704934241613,-320.7376266,0.00041084,2]
[311151167,1704934241633,-5526.78802572,0.00041084,2]
[311151168,1704934241645,-1467.9667264,0.00041084,2]
[311151169,1704934241656,-312.14320097,0.00041084,2]
[311151170,1704934241667,-541.05532265,0.00041084,2]
[311151173,1704934243392,-343.08600003,0.0003918,4]
[311151174,1704934243456,-156.91399997,0.0003918,4]
[311151175,1704934243465,-500.0,0.00039454,4]
[311151176,1704934243474,-307.51738656,0.00039628,15]
[311151177,1704934243483,-500.0,0.00039728,4]
[311151178,1704934243493,-260.2334,0.00040002,4]
[311151179,1704934243502,-427.61472015,0.00041084,2]
[311151180,1704934243519,-4591.32751693,0.00041084,2]
[311151181,1704934243530,-257.26932044,0.00041084,2]
[311151182,1704934243541,-696.05985471,0.00041084,2]
[311151183,1704934243552,-467.70258816,0.00041084,2]
[311151184,1704934243584,-2249.58583881,0.00041084,2]
[311151185,1704934243595,-6966.60069267,0.00041084,2]
[311151186,1704934243606,-2012.40639993,0.00041084,2]
[311151187,1704934243617,-15908.93892887,0.00041084,2]
[311151188,1704934243628,-3545.76105389,0.00041084,2]
[311151189,1704934243639,-1174.85244457,0.00041084,2]
[311151190,1704934243650,-743.97199301,0.00041084,2]
[311151191,1704934243665,-2888.64801327,0.00041084,2]
[311151192,1704934243676,-2847.6647337,0.00041084,2]
[311151193,1704934243709,-293.33957425,0.00041084,2]
[311151194,1704934243720,-21028.4684212,0.00041084,2]
[311151195,1704934243731,-735.6,0.00041084,2]
[311151196,1704934243778,-2172.2,0.00041084,2]
[311151247,1704934246552,-7415.75,0.00038529,2]
[311151249,1704934246563,-15113.38056708,0.00038529,2]
[311151251,1704934246575,-679.04194809,0.00038529,2]
[311151262,1704934246670,-1992.01801662,0.00038529,2]
[311151277,1704934269910,2208016.5026003,0.00023,2]
[311151281,1704934428198,214762.52499706,0.00023,2]
[311151300,1704934721279,350.0,0.00025,3]
[311151305,1704935185300,345.0,0.000311,90]
[311151306,1704935204098,-208.05795675,0.00026997,2]
[311151311,1704935279689,-175.52246646,0.00026997,2]
[311151312,1704935279712,-102282.83254305,0.00026998,2]
[311151313,1704935279733,-400.0,0.00027,3]
[311151314,1704935346259,-361.12598513,0.00028997,2]
[311151315,1704935346285,-1000.0,0.00028998,2]
[311151316,1704935346308,-150.0,0.00028998,2]
[311151317,1704935346331,-450.0,0.00029,3]
[311151318,1704935346353,-5682.69809085,0.00029799,2]
[311151319,1704935346375,-150.0,0.00029799,2]
[311151320,1704935346397,-4779.55191637,0.000298,2]
[311151321,1704935346419,-569.858,0.000298,2]
[311151322,1704935346447,-156.81774785,0.000299,2]
[311151323,1704935346471,-155.0,0.00033999,2]
[311151333,1704935367229,-663.45422565,0.00034256,4]
[311151334,1704935367253,-1000.0,0.00034257,4]
[311151335,1704935367278,-211.96,0.00034258,2]
[311151336,1704935367301,-187.41591316,0.00034673,7]
[311151337,1704935367323,-283.49,0.00034673,2]
[311151338,1704935367346,-1000.0,0.00034739,2]
[311151339,1704935367372,-738.87508028,0.00034742,4]
[311151340,1704935367395,-156.81774785,0.000349,2]
[311151341,1704935367418,-220.39353275,0.00035,2]
[311151373,1704935431563,-155.0,0.00034254,2]
[311151375,1704935431573,-1000.0,0.00034738,4]
[311151376,1704935431583,-1000.0,0.00034739,2]
[311151377,1704935431592,-200.0,0.00034748,2]
[311151378,1704935431604,-779.60646725,0.00035,2]
[311151379,1704935431613,-522.4081413,0.00035,4]
[311151380,1704935431756,-929.56,0.00035,4]
[311151381,1704935431767,-1744.5098629,0.00035,4]
[311151382,1704935431777,-412.45,0.00035189,2]
[311151383,1704935431786,-150.0,0.00035261,2]
[311151384,1704935431795,-250.0,0.00035299,111]
[311151385,1704935431805,-158.7,0.00035432,2]
[311151386,1704935431814,-323.28665007,0.00035455,4]
[311151387,1704935431823,-155.48,0.00035489,10]
[311151388,1704935431832,-777.44,0.00035489,10]
[311151389,1704935431842,-30906.51343221,0.00035497,4]
[311151390,1704935431855,-164.80227326,0.00035498,14]
[311151391,1704935431865,-31100.97122911,0.00035498,2]
[311151392,1704935431877,-53790.77041596,0.00035498,2]
[311151393,1704935431886,-100711.61180729,0.00035499,4]
[311151394,1704935431895,-2747.0,0.000355,3]
[311151395,1704935431905,-15208.0,0.000355,3]
[311151396,1704935431918,-193.76,0.0003557,2]
[311151397,1704935431927,-11757.09985427,0.00035573,2]
[311151398,1704935431939,-2846.42372691,0.00035573,2]
[311151400,1704935431950,-250.19404164,0.00035573,2]
[311151403,1704935431961,-9046.28237718,0.00035573,2]
[311151405,1704935431970,-8659.42670631,0.000356,2]
[311151407,1704935431980,-150.0,0.00035616,2]
[311151409,1704935431989,-168.04,0.00035617,2]
[311151410,1704935431998,-654.15236126,0.0003578,2]
[311151470,1704935437527,-2501.73,0.00035455,2]
[311151471,1704935437536,-345.84763874,0.0003578,2]
[311151472,1704935437545,-393.32580774,0.00035806,2]
[311151473,1704935437554,-540.80798946,0.00035813,4]
[311151474,1704935437563,-155.0,0.00035813,2]
[311151475,1704935437572,-386.15799597,0.00035813,4]
[311151476,1704935437581,-501.70395644,0.00035813,3]
[311151477,1704935437590,-371.60762658,0.00035814,4]
[311151478,1704935437599,-866.56773508,0.00035814,4]
[311151479,1704935437610,-157.35600599,0.00035815,2]
[311151480,1704935437619,-262.58894495,0.00035816,4]
[311151481,1704935437628,-499.99,0.00035816,2]
[311151482,1704935437637,-1279.11443375,0.00035816,4]
[311151483,1704935437646,-26188.01548508,0.00035816,4]
[311151484,1704935437739,-4681.04876325,0.00035816,4]
[311151485,1704935437749,-4216.51174957,0.00035817,4]
[311151486,1704935437758,-11445.84518637,0.00035818,11]
[311151487,1704935437767,-1476.42772842,0.00035818,11]
[311151488,1704935437778,-3162.42117273,0.00035818,11]
[311151489,1704935437787,-11421.77455971,0.00035818,11]
[311151490,1704935437797,-5537.41903336,0.00035818,11]
[311151491,1704935437806,-171.97,0.0003587,2]
[311151492,1704935437815,-250.0,0.00035889,2]
[311151493,1704935437824,-2000.0,0.00035917,2]
[311151494,1704935437832,-161.21,0.00036006,2]
[311151495,1704935437841,-153.1,0.00036088,15]
[311151496,1704935437850,-164.34989603,0.00036089,2]
[311151497,1704935437861,-523.5204,0.0003617,3]
[311151498,1704935437870,-2341.35,0.0003627,2]
[311151499,1704935437879,-165.16,0.00036455,2]
[311151500,1704935437888,-152.71577676,0.00036522,2]
[311151501,1704935437899,-59.24422324,0.00036522,2]
[311151502,1704935437908,-150.0,0.00036554,2]
[311151503,1704935437918,-1000.0,0.000369,2]
[311151504,1704935437926,-238.76668651,0.00037,4]
[311151505,1704935437935,-5000.0,0.00037,2]
[311151506,1704935437944,-154.84,0.00037,3]
[311151507,1704935437953,-1912.752725,0.00037037,30]
[311151508,1704935437963,-1091.94990042,0.00037037,2]
[311151509,1704935437971,-158.7,0.00037274,2]
[311151510,1704935437981,-150.0,0.00037491,2]
[311151511,1704935437990,-2425.0,0.0003789,3]
[311151512,1704935437999,-2500.0,0.0003789,2]
[311151513,1704935438009,-194.6973,0.000379,2]
[311151514,1704935438018,-11888.44,0.000379,30]
[311151515,1704935438027,-11888.44,0.000379,2]
[311151516,1704935438036,-221.48270539,0.00037903,7]
[311151517,1704935438046,-150.18,0.0003798,2]
[311151519,1704935438055,-7507.50645943,0.0003799,2]
[311151520,1704935438083,-12282.80695017,0.0003799,2]
[311151726,1704935440030,-396.26078023,0.0003799,2]
[311151736,1704935440091,-2428.54958317,0.0003799,2]
[311151739,1704935440102,-410.48163677,0.0003799,2]
[311151742,1704935440114,-321.24347634,0.0003799,2]
[311151749,1704935440152,-37538.0,0.0003799,2]
[311151760,1704935440215,-8868.86009902,0.0003799,2]
[311151771,1704935440275,-679.18829299,0.0003799,2]
[311151857,1704935440953,-258.29239278,0.0003799,2]
[311152039,1704935442780,-499.99,0.00037,2]
[311152041,1704935442789,-153.1,0.00037593,15]
[311152043,1704935442798,-7507.53480002,0.0003799,2]
[311152094,1704935443069,-21928.00827908,0.0003799,2]
[311152097,1704935443078,-579.81318589,0.00037998,4]
[311152100,1704935443088,-1042.51,0.00037999,2]
[311152103,1704935443097,-1042.51,0.00037999,2]
[311152106,1704935443106,-12325.32975882,0.00038,2]
[311152133,1704935443271,-1904.98986405,0.00038,2]
[311152135,1704935443282,-1533.29370938,0.00038,2]
[311152137,1704935443293,-4667.4,0.00038,2]
[311152145,1704935443352,-3155.80730951,0.00038,2]
[311152147,1704935443364,-353.659,0.00038,2]
[311152149,1704935443376,-2005.40600007,0.00038,2]
[311152152,1704935443387,-6604.32764006,0.00038,2]
[311152154,1704935443398,-510.38064613,0.00038,2]
[311152157,1704935443416,-3514.93699499,0.00038,2]
[311152159,1704935443427,-2313.54246721,0.00038,2]
[311152161,1704935443438,-818.23270722,0.00038,2]
[311152163,1704935443449,-1368.71259293,0.00038,2]
[311152166,1704935443460,-4050.01805608,0.00038,2]
[311152169,1704935443486,-2867.67658341,0.00038,2]
[311152172,1704935443497,-34832.90890594,0.00038,2]
[311152530,1704935447819,-3368.04608429,0.00035,4]
[311152531,1704935447829,-155.0,0.00037989,2]
[311152532,1704935447838,-1000.0,0.00037989,10]
[311152533,1704935447848,-14158.01055585,0.00038,2]
[311152534,1704935447860,-394.56582583,0.00038,2]
[311152535,1704935447877,-23318.09714786,0.00038,2]
[311152536,1704935447888,-4800.0000001,0.00038,2]
[311152537,1704935447910,-77283.0604369,0.00038,2]
[311152538,1704935447924,-73501.01753271,0.00038,2]
[311152539,1704935447938,-171693.34704735,0.00038,2]
[311152540,1704935448106,-1350.8526661,0.00038,2]
[311152541,1704935448187,-53208.79930641,0.00038,2]
[311152542,1704935448197,-153.75869328,0.00038042,13]
[311152543,1704935448206,-1266.47914281,0.00038142,2]
[311152544,1704935448215,-807.7472,0.00038256,2]
[311152545,1704935448224,-167.0,0.00038278,2]
[311152546,1704935448233,-154.84,0.000383,3]
[311152547,1704935448243,-500.0,0.00038356,4]
[311152548,1704935448252,-500.0,0.00038356,4]
[311152549,1704935448262,-195.30398636,0.00038356,4]
[311152550,1704935448271,-500.0,0.00038356,4]
[311152551,1704935448280,-500.0,0.00038356,4]
[311152552,1704935448289,-500.0,0.00038356,4]
[311152553,1704935448299,-811.37,0.00038356,4]
[311152554,1704935448308,-500.0,0.00038356,4]
[311152555,1704935448317,-500.0,0.00038356,4]
[311152556,1704935448327,-500.24754082,0.00038356,4]
[311152557,1704935448336,-500.0,0.00038356,4]
[311152558,1704935448346,-500.0,0.00038356,4]
[311152559,1704935448354,-577.93958807,0.00038356,4]
[311152560,1704935448363,-500.0,0.00038356,4]
[311152561,1704935448373,-500.0,0.00038356,4]
[311152562,1704935448382,-500.0,0.00038356,4]
[311152563,1704935448391,-500.0,0.00038356,4]
[311152564,1704935448401,-257.07,0.00038356,4]
[311152565,1704935448410,-500.0,0.00038356,4]
[311152566,1704935448419,-500.0,0.00038356,4]
[311152567,1704935448428,-500.0,0.00038356,4]
[311152568,1704935448437,-3674.45,0.00038356,4]
[311152569,1704935448447,-500.0,0.00038356,4]
[311152570,1704935448455,-500.0,0.00038356,4]
[311152571,1704935448464,-500.0,0.00038356,4]
[311152572,1704935448475,-500.0,0.00038356,4]
[311152573,1704935448485,-400.83720404,0.00038356,4]
[311152574,1704935448494,-150.0,0.00038428,2]
[311152575,1704935448503,-318.5943,0.00038429,2]
[311152576,1704935448513,-21262.7485,0.00038429,2]
[311152577,1704935448523,-150.18,0.00038499,2]
[311152578,1704935448532,-657.04217787,0.000385,2]
[311152579,1704935448541,-100126.73275,0.00038509,2]
[311152580,1704935448551,-150.99155862,0.00038519,2]
[311152581,1704935448560,-2370.00446053,0.00038519,12]
[311152582,1704935448570,-579.40411831,0.00038527,4]
[311152583,1704935448579,-472.27624596,0.00038527,4]
[311152584,1704935448588,-437.68874587,0.00038527,4]
[311152585,1704935448598,-500.0,0.00038528,4]
[311152586,1704935448607,-1042.51,0.00038528,2]
[311152587,1704935448618,-302.0096739,0.00038528,4]
[311152588,1704935448628,-1946.47830428,0.00038528,4]
[311152589,1704935448637,-7066.28607176,0.00038528,4]
[311152590,1704935448646,-4002.11843427,0.00038528,4]
[311152591,1704935448655,-111669.63456821,0.00038529,2]
[311152592,1704935448665,-933.1584,0.00038619,2]
[311152593,1704935448674,-153.75869328,0.00038619,13]
[311152594,1704935448683,-500.0,0.0003863,4]
[311152595,1704935448692,-309.81,0.0003863,4]
[311152596,1704935448701,-499.09989999,0.0003863,4]
[311152597,1704935448711,-811.37,0.0003863,4]
[311152598,1704935448719,-463.04507663,0.0003863,4]
[311152599,1704935448728,-500.0,0.0003863,4]
[311152600,1704935448738,-500.0,0.0003863,4]
[311152601,1704935448746,-500.0,0.0003863,4]
[311152602,1704935448756,-586.7378155,0.0003863,4]
[311152603,1704935448765,-500.0,0.0003863,4]
[311152604,1704935448774,-500.0,0.0003863,4]
[311152605,1704935448783,-500.0,0.0003863,4]
[311152606,1704935448792,-3674.45,0.0003863,4]
[311152607,1704935448802,-190.20536123,0.0003863,4]
[311152608,1704935448812,-500.0,0.0003863,4]
[311152609,1704935448822,-500.0,0.0003863,4]
[311152610,1704935448831,-500.0,0.0003863,4]
[311152611,1704935448841,-100126.73275,0.00038709,3]
[311152612,1704935448851,-3301.085,0.00038719,2]
[311152613,1704935448862,-9667.43606982,0.00038719,2]
[311152614,1704935448872,-2841.51931985,0.00038719,2]
[311152615,1704935448882,-4898.19478324,0.00038719,2]
[311152616,1704935448891,-161.21,0.00038746,2]
[311152617,1704935448901,-211.96,0.00038786,2]
[311152618,1704935448910,-500.0,0.00038904,4]
[311152619,1704935448920,-811.37,0.00038904,4]
[311152620,1704935448930,-267.36137438,0.00038904,4]
[311152621,1704935448940,-500.0,0.00038904,4]
[311152622,1704935448949,-500.0,0.00038904,4]
[311152623,1704935448960,-500.0,0.00038904,4]
[311152624,1704935448969,-500.0,0.00038904,4]
[311152625,1704935448978,-500.0,0.00038904,4]
[311152626,1704935448988,-3674.45,0.00038904,4]
[311152627,1704935448997,-500.0,0.00038904,4]
[311152628,1704935449007,-500.0,0.00038904,4]
[311152629,1704935449016,-281.37,0.00038904,4]
[311152630,1704935449025,-500.0,0.00038907,4]
[311152631,1704935449036,-500.0,0.00038907,4]
[311152632,1704935449046,-168.04,0.00038967,2]
[311152633,1704935449055,-153.84,0.0003897,2]
[311152634,1704935449065,-281.65321815,0.0003898,2]
[311152635,1704935449074,-1427.01104071,0.00039,2]
[311152636,1704935449083,-5609.30436227,0.00039028,7]
[311152637,1704935449093,-158.66539268,0.00039029,2]
[311152638,1704935449102,-2370.00446047,0.00039054,12]
[311152639,1704935449112,-500.0,0.00039178,4]
[311152640,1704935449122,-811.37,0.00039178,4]
[311152641,1704935449131,-500.0,0.00039178,4]
[311152642,1704935449141,-500.0,0.00039178,4]
[311152643,1704935449150,-500.0,0.00039178,4]
[311152644,1704935449160,-500.0,0.00039178,4]
[311152645,1704935449169,-3674.45,0.00039178,4]
[311152646,1704935449178,-500.0,0.00039178,4]
[311152647,1704935449188,-500.0,0.00039178,4]
[311152648,1704935449198,-499.77629149,0.00039181,4]
[311152649,1704935449207,-1000.0,0.000392,2]
[311152650,1704935449217,-706.66,0.0003926,2]
[311152651,1704935449227,-150.0,0.00039366,2]
[311152652,1704935449236,-205.0,0.00039375,2]
[311152653,1704935449245,-500.0,0.00039452,4]
[311152654,1704935449255,-811.37,0.00039452,4]
[311152655,1704935449264,-530.7811412,0.00039452,4]
[311152656,1704935449274,-500.0,0.00039452,4]
[311152657,1704935449283,-367.82498221,0.00039452,4]
[311152658,1704935449291,-500.0,0.00039452,4]
[311152659,1704935449301,-3674.45,0.00039452,4]
[311152660,1704935449311,-255.49,0.00039452,4]
[311152661,1704935449320,-500.0,0.00039452,4]
[311152662,1704935449331,-321.67649999,0.00039453,4]
[311152663,1704935449340,-1042.51,0.00039453,2]
[311152664,1704935449350,-155.17374078,0.00039496,7]
[311152665,1704935449360,-154.84,0.000395,3]
[311152666,1704935449370,-180.0,0.00039546,2]
[311152667,1704935449380,-2370.00446047,0.00039588,13]
[311152668,1704935449389,-7500.0,0.00039629,2]
[311152669,1704935449398,-20000.0,0.00039629,2]
[311152670,1704935449407,-500.0,0.00039726,4]
[311152671,1704935449418,-811.37,0.00039726,4]
[311152672,1704935449427,-376.61711779,0.00039726,4]
[311152673,1704935449436,-500.0,0.00039726,4]
[311152674,1704935449445,-3674.45,0.00039726,4]
[311152675,1704935449454,-500.0,0.00039726,4]
[311152676,1704935449464,-193.32810436,0.00039799,2]
[311152677,1704935449474,-150.0,0.00039863,2]
[311152678,1704935449484,-167.86064,0.00039879,7]
[311152679,1704935449493,-151.0,0.00039879,7]
[311152680,1704935449503,-151.0,0.00039879,7]
[311152681,1704935449512,-151.0,0.00039879,7]
[311152682,1704935449522,-97471.38800332,0.00039879,5]
[311152683,1704935449641,-2655.34474668,0.00039879,5]
[311152684,1704935449651,-178.81656839,0.0003988,2]
[311152685,1704935449660,-6408.1965779,0.0003989,5]
[311152686,1704935449677,-2362.80717664,0.0003989,5]
[311152687,1704935449688,-11623.69964997,0.0003989,5]
[311152689,1704935461841,6949.0,0.00027397,4]
[311152695,1704936430097,-1000.0,0.00031999,2]
[311152696,1704936430117,-3467.89231811,0.00032,7]
[311152697,1704936435100,-459.18452051,0.00032,7]
[311152698,1704936451105,-1000.0,0.00031999,2]
[311152699,1704936451128,-155.0,0.00031999,2]
[311152700,1704936451147,-196.54025107,0.00032,7]
[311152701,1704936525856,350.0,0.00025,3]
[311152702,1704936527100,400.0,0.00027,3]
[311152703,1704936528205,450.0,0.00029,3]
[311152704,1704936546109,-150.0,0.00030999,2]
[311152705,1704936546131,-155.0,0.00030999,2]
[311152706,1704936546154,-500.0,0.00031,3]
[311152707,1704936546176,-150.0,0.000315,2]
[311152708,1704936546201,-1000.0,0.00031997,2]
[311152709,1704936546223,-1235.38824662,0.00031998,2]
[311152710,1704936551111,-738.12713358,0.00031998,2]
[311152711,1704936551134,-23653.56887641,0.00032,7]
[311152712,1704936551155,-550.0,0.00033,3]
[311152713,1704936551175,-483.68814411,0.000336,2]
[311152714,1704936551196,-161.77811399,0.000339,2]
[311152715,1704936551217,-1000.0,0.00034,4]
[311152716,1704936562133,-1000.0,0.00034964,2]
[311152717,1704936562154,-155.22894441,0.00034965,2]
[311152718,1704936573286,-155.0,0.00034964,2]
[311152719,1704936573309,-6.54916954,0.00034965,2]
[311152720,1704936573330,-1000.0,0.00035,2]
[311152721,1704936573350,-39.65042767,0.00035536,2]
[311152736,1704936631791,-1000.0,0.00034999,4]
[311152737,1704936631801,-903.81,0.00035,10]
[311152739,1704936631811,-267.54391656,0.00035,4]
[311152740,1704936631821,-1000.0,0.00035,2]
[311152741,1704936631830,-316.96957233,0.00035536,2]
[311152742,1704936631840,-155.0,0.00035714,2]
[311152743,1704936631850,-143.48079546,0.00035714,4]
[311152744,1704936632054,-110.83783366,0.00035714,4]
[311152745,1704936632063,-213.02856754,0.00035714,2]
[311152756,1704936636043,151.74,0.000315,2]
[311152762,1704936637811,-849.6387034,0.00035536,30]
[311152763,1704936637822,-2106.24174074,0.00035714,2]
[311152764,1704936637831,-165.2779489,0.00035714,4]
[311152765,1704936637843,-2490.29601628,0.00035715,4]
[311152766,1704936637853,-1440.20146051,0.00035715,2]
[311152767,1704936637865,-488.49930638,0.00035715,2]
[311152768,1704936637876,-2340.35831021,0.00035715,2]
[311152769,1704936637885,-1113.5510319,0.00035715,4]
[311152770,1704936637894,-582.2027377,0.00035715,4]
[311152771,1704936637903,-288.04462953,0.00035716,2]
[311152772,1704936637915,-705.61770071,0.00035716,2]
[311152773,1704936637926,-340.53270239,0.00035716,2]
[311152817,1704936640239,-5119.66619425,0.00035716,2]
[311152818,1704936640419,-353.65999998,0.00035716,2]
[311152819,1704936641024,-458.2684715,0.00035716,2]
[311152820,1704936641037,-407.97933242,0.00035716,2]
[311152821,1704936641049,-335.16834998,0.00035716,2]
[311152822,1704936641068,-19552.78591924,0.00035716,2]
[311152823,1704936641077,-7229.89337278,0.00035818,11]
[311152824,1704936641097,-2448.97667416,0.00035818,11]
[311152825,1704936641109,-5139.79855187,0.00035818,11]
[311152826,1704936641120,-2748.82849261,0.00035818,11]
[311152827,1704936641129,-700.15,0.00035818,2]
[311152828,1704936641139,-187.41591316,0.00035899,7]
[311152829,1704936641149,-433.61846547,0.00036,4]
[311152830,1704936641162,-161.77811395,0.0003603,2]
[311152831,1704936641172,-233.74855906,0.00036271,7]
[311152832,1704936641183,-150.0,0.00036685,2]
[311152833,1704936641192,-500.0,0.00036822,7]
[311152834,1704936641202,-1000.0,0.000369,2]
[311152835,1704936641212,-150.1,0.00037,14]
[311152836,1704936641221,-5000.0,0.00037,2]
[311152837,1704936641231,-12000.0,0.00037,4]
[311152838,1704936641240,-232.71,0.00037,2]
[311152839,1704936641250,-499.99,0.00037,2]
[311152840,1704936641260,-423.04944463,0.00037,2]
[311152841,1704936641269,-169.01,0.00037,3]
[311152842,1704936641279,-496.52,0.00037045,2]
[311152843,1704936641288,-7465.28,0.00037045,2]
[311152844,1704936641297,-1661.721051,0.00037046,30]
[311152845,1704936641307,-1247.8535,0.00037046,30]
[311152846,1704936641317,-161.77811395,0.00037095,2]
[311152847,1704936641327,-250.0,0.00037413,2]
[311152848,1704936641337,-2512.3718,0.00037486,2]
[311152849,1704936641346,-6000.0,0.000375,2]
[311152850,1704936641356,-150.0,0.00037509,2]
[311152851,1704936641366,-1852.42,0.00037517,2]
[311152852,1704936641376,-234.25942748,0.00037517,2]
[311152875,1704936642919,-286.20057252,0.00037517,2]
[311152876,1704936642929,-2000.0,0.00037539,2]
[311152877,1704936642940,-586.45,0.00037541,2]
[311152878,1704936642949,-153.1,0.00037562,15]
[311152879,1704936642958,-325.0529045,0.00037573,2]
[311152880,1704936642971,-174.9470955,0.00037573,2]
[311152881,1704936642980,-461.55073586,0.00037576,10]
[311152882,1704936642993,-16.39926414,0.00037576,10]
[311152883,1704936643003,-12430.2319695,0.00037586,2]
[311152884,1704936643015,-2026.33577236,0.00037586,2]
[311152885,1704936643027,-4663.0,0.00037586,2]
[311152886,1704936643039,-1436.51942642,0.00037586,2]
[311152887,1704936643050,-3343.91283172,0.00037586,2]
[311152888,1704936643061,-161.99,0.00037605,2]
[311152889,1704936643071,-223.11,0.00037617,2]
[311152890,1704936643081,-800.0,0.00037646,2]
[311152891,1704936643094,-150.0,0.00037665,2]
[311152892,1704936643103,-153.94,0.00037716,2]
[311152893,1704936643114,-1240.36444685,0.00037735,2]
[311152894,1704936643126,-710.75555315,0.00037735,2]
[311152895,1704936643137,-158.53,0.00037794,2]
[311152896,1704936643147,-356.62,0.000378,2]
[311152897,1704936643157,-1069.0353,0.00037808,2]
[311152898,1704936643169,-1741.40343401,0.00037838,2]
[311152900,1704936643181,-1150.87277371,0.00037838,2]
[311152946,1704936645961,-11669.26379228,0.00037838,2]
[311152947,1704936645972,-165.55,0.0003787,2]
[311152948,1704936645981,-180.61,0.00037884,2]
[311152949,1704936645991,-1186.37070852,0.00037886,2]
[311152950,1704936646003,-1881.30503502,0.00037886,2]
[311152951,1704936646012,-254.96667626,0.00037886,4]
[311152952,1704936646021,-165.03,0.00037897,2]
[311152953,1704936646031,-500.0,0.00037903,7]
[311152954,1704936646040,-275.0,0.00037903,7]
[311152955,1704936646049,-202.5,0.00037903,7]
[311152956,1704936646059,-452.04,0.00037936,2]
[311152957,1704936646070,-200.0,0.00037938,2]
[311152958,1704936646079,-83.90165167,0.00038022,7]
[311152959,1704936646239,-416.09834833,0.00038022,7]
[311152960,1704936646248,-452.04,0.0003804,2]
[311152961,1704936646258,-452.04,0.00038144,2]
[311152962,1704936646267,-161.77811395,0.0003816,2]
[311152963,1704936646276,-167.89,0.00038208,2]
[311152964,1704936646285,-452.04,0.00038248,2]
[311152965,1704936646295,-169.01,0.000383,3]
[311152966,1704936646303,-254.88,0.00038319,2]
[311152967,1704936646313,-452.04,0.00038352,2]
[311152968,1704936646322,-284.59181985,0.00038356,4]
[311152969,1704936646333,-168.42847101,0.00038356,4]
[311152970,1704936646342,-500.0,0.00038356,4]
[311152971,1704936646352,-7500.0,0.00038409,2]
[311152972,1704936646361,-452.04,0.00038456,2]
[311152973,1704936646371,-657.04217787,0.000385,2]
[311152974,1704936646380,-254.88,0.0003852,2]